fUST/lending_fUST_20251115
["ID","MTS","AMOUNT","RATE_DAILY","PERIOD"]
[394012316,1763182237949,-218.44060675,0.00038827,15]
[394012317,1763182237959,-500.0,0.00038827,7]
[394012318,1763182237968,-407.87312904,0.00038827,7]
[394012319,1763182237978,-500.0,0.00038827,15]
[394012320,1763182237987,-500.0,0.00038827,15]
[394012321,1763182237995,-500.0,0.00038827,15]
[394012322,1763182238004,-500.0,0.00038827,15]
[394012323,1763182238013,-500.0,0.00038827,7]
[394012324,1763182238022,-500.0,0.00038827,15]
[394012325,1763182238032,-500.0,0.00038827,7]
[394012326,1763182238041,-500.0,0.00038827,15]
[394012327,1763182238050,-191.00807897,0.00038827,15]
[394012328,1763182238060,-500.0,0.00038827,15]
[394012329,1763182238070,-500.0,0.00038827,15]
[394012330,1763182238079,-500.0,0.00038827,15]
[394012331,1763182238088,-500.0,0.00038827,15]
[394012332,1763182238097,-500.0,0.00038827,15]
[394012333,1763182238106,-500.0,0.00038827,15]
[394012334,1763182238116,-575.0,0.00038827,15]
[394012335,1763182238124,-500.0,0.00038827,7]
[394012336,1763182238134,-551.80479898,0.00038827,15]
[394012337,1763182238143,-525.0,0.00038827,15]
[394012338,1763182238152,-500.0,0.00038827,7]
[394012339,1763182238161,-500.0,0.00038827,7]
[394012340,1763182238170,-500.0,0.00038827,7]
[394012341,1763182238179,-500.0,0.00038827,7]
[394012342,1763182238189,-500.0,0.00038827,7]
[394012343,1763182238198,-500.0,0.00038827,7]
[394012344,1763182238208,-500.0,0.00038827,7]
[394012345,1763182238217,-227.70185267,0.00038827,7]
[394012346,1763182238226,-500.0,0.00038827,7]
[394012347,1763182238235,-8124.53437705,0.00038828,2]
[394012348,1763182238254,-2741.214447,0.00038828,2]
[394012349,1763182238265,-3621.76638983,0.00038828,2]
[394012467,1763182241760,9951.0,0.00032878,120]
[394012478,1763182243915,-67463.19581828,0.00038828,2]
[394012488,1763182246390,-25004.3299,0.00038828,2]
[394012500,1763182728298,220.164673,0.00013699,2]
[394012501,1763182728705,220.164673,0.00020187,2]
[394012505,1763182932710,137899.80346448,0.00038926,10]
[394012507,1763183083081,321.37215076,0.00038925,120]
[394012508,1763183420642,199999.00000018,0.0003888,10]
[394012625,1763183438268,-169.917308,0.000249,2]
[394012626,1763183438277,-1402.11533245,0.00026282,2]
[394012627,1763183438287,-220.164673,0.00026676,2]
[394012628,1763183438297,-252.77350201,0.00029675,2]
[394012629,1763183438309,-1149.34183044,0.00029675,2]
[394012630,1763183438318,-300.0,0.00029999,2]
[394012631,1763183438327,-2541.2,0.0003,7]
[394012632,1763183438336,-169.917308,0.0003,7]
[394012633,1763183438345,-300.0,0.00030599,30]
[394012634,1763183438355,-300.0,0.00030599,30]
[394012635,1763183438364,-500.0,0.00032272,2]
[394012636,1763183438373,-175.0,0.00032272,2]
[394012637,1763183438382,-225.0,0.00032272,2]
[394012638,1763183438392,-500.0,0.00032272,2]
[394012639,1763183438401,-156.38887449,0.00032272,2]
[394012640,1763183438411,-278.23465642,0.00032272,2]
[394012641,1763183438420,-500.0,0.00032272,2]
[394012642,1763183438430,-500.0,0.00032272,2]
[394012643,1763183438439,-500.0,0.00032273,5]
[394012644,1763183438448,-40603.91950576,0.00032273,2]
[394012645,1763183438457,-169.917308,0.00032297,2]
[394012646,1763183438466,-288.3655581,0.00032433,5]
[394012647,1763183438476,-500.0,0.00032433,5]
[394012648,1763183438486,-500.0,0.00032433,5]
[394012649,1763183438495,-5000.0,0.000325,2]
[394012650,1763183438504,-500.0,0.0003265,5]
[394012651,1763183438513,-500.0,0.0003265,5]
[394012652,1763183438523,-5000.0,0.000328,2]
[394012653,1763183438532,-499.61411768,0.00032821,5]
[394012654,1763183438542,-500.0,0.00032973,5]
[394012655,1763183438551,-500.0,0.00032973,5]
[394012656,1763183438561,-1402.11533245,0.00033068,2]
[394012657,1763183438570,-220.164673,0.00033165,2]
[394012658,1763183438580,-5000.0,0.000334,2]
[394012659,1763183438589,-1000.0,0.00033521,5]
[394012660,1763183438599,-1000.0,0.00033521,5]
[394012661,1763183438612,-1009.24750652,0.00034068,5]
[394012662,1763183438622,-1500.0,0.00034068,5]
[394012663,1763183438631,-310.502381,0.00034616,5]
[394012664,1763183438643,-962.78142345,0.00034616,5]
[394012665,1763183438653,-160.0,0.00035,120]
[394012666,1763183438663,-635.51119032,0.00035259,7]
[394012667,1763183438672,-152.90842472,0.00035259,7]
[394012668,1763183438681,-169.917308,0.00036094,7]
[394012669,1763183438691,-150.08,0.00036185,60]
[394012670,1763183438700,-150.07,0.00036185,60]
[394012671,1763183438710,-150.08,0.00036285,60]
[394012672,1763183438719,-150.07,0.00036285,60]
[394012673,1763183438732,-150.08,0.00036385,60]
[394012674,1763183438743,-150.07,0.00036385,60]
[394012675,1763183438752,-1402.11533245,0.00036461,2]
[394012676,1763183438762,-150.08,0.00036485,60]
[394012677,1763183438771,-150.07,0.00036485,60]
[394012678,1763183438780,-150.08,0.00036585,60]
[394012679,1763183438790,-150.07,0.00036585,60]
[394012680,1763183438799,-150.08,0.00036685,60]
[394012681,1763183438808,-150.07,0.00036685,60]
[394012682,1763183438817,-150.08,0.00036785,60]
[394012683,1763183438826,-150.07,0.00036785,60]
[394012684,1763183438835,-150.08,0.00036885,60]
[394012685,1763183438845,-150.07,0.00036885,60]
[394012686,1763183438854,-150.08,0.00036985,60]
[394012687,1763183438863,-150.07,0.00036985,60]
[394012688,1763183438872,-150.08,0.00037085,60]
[394012689,1763183438881,-150.07,0.00037085,60]
[394012690,1763183438890,-150.08,0.00037185,60]
[394012691,1763183438900,-150.07,0.00037185,60]
[394012692,1763183438909,-150.08,0.00037285,60]
[394012693,1763183438918,-150.07,0.00037285,60]
[394012694,1763183438927,-150.08,0.00037385,60]
[394012695,1763183438937,-150.07,0.00037385,60]
[394012696,1763183438946,-150.08,0.00037485,60]
[394012697,1763183438955,-150.07,0.00037485,60]
[394012698,1763183438964,-150.08,0.00037585,60]
[394012699,1763183438973,-150.1,0.00037585,60]
[394012700,1763183438982,-150.08,0.00037685,60]
[394012701,1763183438992,-150.08,0.00037785,60]
[394012702,1763183439001,-150.08,0.00037885,60]
[394012703,1763183439010,-500.0,0.00037973,5]
[394012704,1763183439019,-503.17034432,0.00037973,5]
[394012705,1763183439029,-209.47526039,0.00037973,5]
[394012706,1763183439039,-426.07856633,0.00037973,5]
[394012707,1763183439049,-150.08,0.00037985,60]
[394012708,1763183439058,-175.18,0.0003799,3]
[394012709,1763183439067,-525.59,0.0003799,3]
[394012710,1763183439079,-8866.03201245,0.0003799,3]
[394012711,1763183439089,-5439.27331998,0.0003799,3]
[394012712,1763183439099,-151.0,0.0003799,30]
[394012713,1763183439109,-151.0,0.0003799,31]
[394012714,1763183439118,-151.0,0.0003799,2]
[394012715,1763183439128,-151.0,0.0003799,31]
[394012716,1763183439138,-151.0,0.0003799,31]
[394012717,1763183439147,-500.0,0.00037999,20]
[394012718,1763183439159,-500.0,0.00037999,20]
[394012719,1763183439168,-500.0,0.00037999,20]
[394012720,1763183439177,-500.0,0.00037999,20]
[394012721,1763183439186,-500.0,0.00037999,20]
[394012722,1763183439195,-500.0,0.00037999,20]
[394012723,1763183439204,-500.0,0.00037999,20]
[394012724,1763183439214,-500.0,0.00037999,20]
[394012725,1763183439223,-522.04919764,0.00037999,20]
[394012726,1763183439232,-1150.5,0.00038,15]
[394012727,1763183439241,-400000.0,0.00038,2]
[394012728,1763183439250,-151.0,0.00038,31]
[394012729,1763183439260,-154.476908,0.00038,31]
[394012730,1763183439269,-151.0,0.00038,31]
[394012731,1763183439279,-167.092001,0.00038,31]
[394012732,1763183439288,-167.092001,0.00038,31]
[394012733,1763183439297,-167.092001,0.00038,31]
[394012734,1763183439306,-167.092001,0.00038,31]
[394012735,1763183439315,-153.123315,0.00038,31]
[394012736,1763183439324,-158.951562,0.00038,31]
[394012737,1763183439333,-151.0,0.00038,31]
[394012738,1763183439343,-151.0,0.00038,31]
[394012739,1763183439352,-151.0,0.00038,31]
[394012740,1763183439361,-151.0,0.00038,31]
[394012741,1763183439370,-151.0,0.00038,31]
[394012742,1763183439380,-151.0,0.00038,31]
[394012743,1763183439390,-169.594046,0.00038,31]
[394012744,1763183439399,-151.0,0.00038,31]
[394012745,1763183439408,-151.0,0.00038,31]
[394012746,1763183439418,-151.0,0.00038,31]
[394012747,1763183439427,-164.339368,0.00038,7]
[394012748,1763183439436,-152.604281,0.00038,31]
[394012749,1763183439445,-164.339368,0.00038,7]
[394012750,1763183439454,-164.339368,0.00038,7]
[394012751,1763183439464,-164.339368,0.00038,7]
[394012752,1763183439666,-151.0,0.00038,31]
[394012753,1763183439682,-151.0,0.00038,31]
[394012754,1763183439692,-151.0,0.00038,31]
[394012755,1763183439703,-157.846011,0.00038,31]
[394012756,1763183439712,-151.0,0.00038,31]
[394012757,1763183439721,-2125.77,0.00038,14]
[394012758,1763183439731,-157.497703,0.00038,31]
[394012759,1763183439740,-151.0,0.00038,31]
[394012760,1763183439749,-151.0,0.00038,31]
[394012761,1763183439758,-233.564993,0.00038,31]
[394012762,1763183439768,-151.0,0.00038,31]
[394012763,1763183439777,-151.0,0.00038,31]
[394012764,1763183439786,-151.0,0.00038,31]
[394012765,1763183439796,-309.896953,0.00038,31]
[394012766,1763183439806,-151.0,0.00038,31]
[394012767,1763183439815,-309.896953,0.00038,31]
[394012768,1763183439824,-309.896953,0.00038,31]
[394012769,1763183439834,-309.896953,0.00038,31]
[394012770,1763183439843,-153.881741,0.00038,31]
[394012771,1763183439853,-496.403243,0.00038,31]
[394012772,1763183439862,-496.403243,0.00038,31]
[394012773,1763183439871,-470.63811,0.00038,31]
[394012774,1763183439880,-496.403243,0.00038,31]
[394012777,1763183439890,-496.403243,0.00038,31]
[394012779,1763183439899,-470.63811,0.00038,31]
[394012780,1763183439908,-173.193104,0.00038,31]
[394012781,1763183439917,-470.63811,0.00038,31]
[394012782,1763183439926,-470.63811,0.00038,31]
[394012783,1763183439935,-2409.732863,0.00038,31]
[394012784,1763183439945,-2409.732863,0.00038,31]
[394012785,1763183439954,-2409.732863,0.00038,31]
[394012786,1763183439963,-2409.732863,0.00038,31]
[394012787,1763183439972,-270.262335,0.00038,30]
[394012788,1763183439982,-151.0,0.00038,31]
[394012789,1763183439991,-151.0,0.00038,2]
[394012790,1763183440001,-151.0,0.00038,31]
[394012791,1763183440010,-151.0,0.00038,31]
[394012792,1763183440020,-150.08,0.00038085,60]
[394012793,1763183440029,-150.08,0.00038185,60]
[394012794,1763183440039,-150.08,0.00038285,60]
[394012795,1763183440048,-227.770705,0.00038356,120]
[394012797,1763183440057,-227.770705,0.00038356,120]
[394012799,1763183440067,-227.770705,0.00038356,120]
[394012800,1763183440078,-227.770705,0.00038356,120]
[394012801,1763183440089,-150.08,0.00038385,120]
[394012802,1763183440098,-151.0,0.00038429,120]
[394012803,1763183440107,-151.0,0.00038429,2]
[394012804,1763183440117,-151.0,0.00038429,120]
[394012805,1763183440127,-150.08,0.00038485,120]
[394012806,1763183440136,-150.08,0.00038585,120]
[394012807,1763183440146,-854821.469502,0.0003861,2]
[394012808,1763183440156,-2713.64,0.00038628,21]
[394012809,1763183440165,-2412.89962437,0.00038629,2]
[394012810,1763183440175,-500.0,0.00038673,5]
[394012811,1763183440184,-522.104074,0.00038673,5]
[394012812,1763183440193,-150.08,0.00038685,120]
[394012813,1763183440203,-151.0,0.000387,16]
[394012814,1763183440212,-151.0,0.000387,20]
[394012815,1763183440221,-10836.2613486,0.00038717,3]
[394012816,1763183440231,-6648.00072442,0.00038717,3]
[394012817,1763183440240,-156.547399,0.00038717,120]
[394012818,1763183440250,-151.0,0.00038717,120]
[394012819,1763183440258,-151.0,0.00038717,120]
[394012821,1763183440267,-158.708009,0.00038717,120]
[394012822,1763183440276,-156.833439,0.00038717,120]
[394012823,1763183440285,-151.0,0.00038717,120]
[394012824,1763183440295,-151.0,0.00038717,120]
[394012825,1763183440304,-1127.814735,0.00038717,120]
[394012826,1763183440313,-151.0,0.00038717,120]
[394012827,1763183440322,-1127.814735,0.00038717,120]
[394012829,1763183440331,-1127.814735,0.00038717,120]
[394012831,1763183440340,-1127.814735,0.00038717,120]
[394012834,1763183440350,-151.0,0.00038717,120]
[394012835,1763183440359,-151.0,0.00038717,30]
[394012837,1763183440368,-152.71732,0.00038717,120]
[394012839,1763183440377,-151.0,0.00038717,120]
[394012841,1763183440386,-215.013989,0.00038717,120]
[394012843,1763183440396,-151.0,0.00038717,120]
[394012845,1763183440405,-151.0,0.00038717,2]
[394012847,1763183440415,-154.031876,0.00038717,120]
[394012850,1763183440424,-890000.0,0.00038727,2]
[394012852,1763183440434,-151.0,0.00038727,120]
[394012854,1763183440443,-154.838564,0.00038727,120]
[394012856,1763183440452,-164.339368,0.00038727,7]
[394012858,1763183440462,-164.339368,0.00038727,7]
[394012860,1763183440472,-164.339368,0.00038727,7]
[394012862,1763183440486,-164.339368,0.00038727,7]
[394012864,1763183440496,-154.068842,0.00038727,120]
[394012866,1763183440505,-151.0,0.00038727,120]
[394012868,1763183440514,-151.0,0.00038727,120]
[394012871,1763183440523,-151.0,0.00038727,120]
[394012874,1763183440534,-151.0,0.00038727,120]
[394012878,1763183440544,-309.896953,0.00038727,120]
[394012881,1763183440553,-290.291685,0.00038727,120]
[394012883,1763183440563,-309.896953,0.00038727,120]
[394012885,1763183440572,-309.896953,0.00038727,120]
[394012886,1763183440582,-309.896953,0.00038727,120]
[394012887,1763183440592,-227.770705,0.00038727,120]
[394012888,1763183440601,-227.770705,0.00038727,120]
[394012889,1763183440611,-227.770705,0.00038727,120]
[394012890,1763183440621,-496.403243,0.00038727,120]
[394012891,1763183440631,-227.770705,0.00038727,120]
[394012892,1763183440641,-496.403243,0.00038727,120]
[394012893,1763183440650,-470.63811,0.00038727,120]
[394012894,1763183440660,-496.403243,0.00038727,120]
[394012895,1763183440670,-496.403243,0.00038727,120]
[394012896,1763183440680,-470.63811,0.00038727,120]
[394012897,1763183440690,-470.63811,0.00038727,120]
[394012898,1763183440700,-470.63811,0.00038727,120]
[394012899,1763183440710,-222.029966,0.00038727,120]
[394012900,1763183440720,-154.800377,0.00038727,120]
[394012901,1763183440729,-151.0,0.00038727,120]
[394012902,1763183440739,-2409.732863,0.00038727,120]
[394012903,1763183440748,-151.0,0.00038727,120]
[394012904,1763183440758,-1127.814735,0.00038727,120]
[394012905,1763183440768,-151.0,0.00038727,120]
[394012906,1763183440778,-2409.732863,0.00038727,120]
[394012907,1763183440788,-1127.814735,0.00038727,120]
[394012908,1763183440799,-2409.732863,0.00038727,120]
[394012909,1763183440809,-1127.814735,0.00038727,120]
[394012910,1763183440819,-2409.732863,0.00038727,120]
[394012911,1763183440828,-1127.814735,0.00038727,120]
[394012913,1763183440838,-269.026467,0.00038727,120]
[394012914,1763183440853,-151.0,0.00038727,30]
[394012915,1763183440863,-154.54474,0.00038727,120]
[394012916,1763183440872,-153.551358,0.00038727,120]
[394012917,1763183440882,-151.576007,0.00038727,2]
[394012918,1763183440891,-362.21152517,0.0003873,15]
[394012919,1763183440901,-150.08,0.00038785,120]
[394012920,1763183440911,-151.0,0.00038805,2]
[394012921,1763183440920,-151.0,0.00038805,2]
[394012922,1763183440929,-151.0,0.00038805,2]
[394012923,1763183440938,-151.0,0.00038805,2]
[394012924,1763183440947,-151.0,0.00038805,2]
[394012925,1763183440957,-151.0,0.00038805,2]
[394012926,1763183440967,-151.0,0.00038805,2]
[394012927,1763183440976,-151.0,0.00038805,2]
[394012928,1763183440986,-301.99999997,0.00038805,2]
[394012929,1763183440995,-151.0,0.00038818,120]
[394012930,1763183441005,-151.0,0.00038818,120]
[394012931,1763183441014,-151.0,0.00038818,120]
[394012932,1763183441023,-151.0,0.00038818,120]
[394012933,1763183441034,-151.0,0.00038818,120]
[394012934,1763183441043,-151.0,0.00038818,120]
[394012935,1763183441053,-151.0,0.00038818,120]
[394012936,1763183441062,-153.799581,0.00038818,120]
[394012937,1763183441071,-186.560179,0.00038818,120]
[394012938,1763183441085,-305.024795,0.00038818,120]
[394012939,1763183441094,-305.024795,0.00038818,120]
[394012940,1763183441103,-305.024795,0.00038818,120]
[394012941,1763183441112,-305.024795,0.00038818,120]
[394012942,1763183441122,-151.0,0.00038818,120]
[394012943,1763183441131,-167.092001,0.00038818,120]
[394012944,1763183441140,-167.092001,0.00038818,120]
[394012945,1763183441149,-167.092001,0.00038818,120]
[394012946,1763183441161,-167.092001,0.00038818,120]
[394012947,1763183441170,-151.0,0.00038818,120]
[394012948,1763183441179,-161.503181,0.00038818,120]
[394012949,1763183441188,-151.0,0.00038818,120]
[394012950,1763183441198,-151.0,0.00038818,120]
[394012951,1763183441207,-151.0,0.00038818,120]
[394012952,1763183441216,-151.0,0.00038818,120]
[394012953,1763183441224,-164.339368,0.00038818,7]
[394012954,1763183441233,-164.339368,0.00038818,7]
[394012955,1763183441242,-164.339368,0.00038818,7]
[394012956,1763183441251,-164.339368,0.00038818,7]
[394012957,1763183441260,-151.0,0.00038818,120]
[394012958,1763183441269,-151.0,0.00038818,120]
[394012959,1763183441278,-151.0,0.00038818,120]
[394012960,1763183441287,-151.0,0.00038818,120]
[394012961,1763183441297,-151.0,0.00038818,120]
[394012962,1763183441305,-309.896953,0.00038818,120]
[394012963,1763183441315,-309.896953,0.00038818,120]
[394012964,1763183441324,-309.896953,0.00038818,120]
[394012965,1763183441333,-309.896953,0.00038818,120]
[394012966,1763183441342,-227.770705,0.00038818,120]
[394012967,1763183441351,-227.770705,0.00038818,120]
[394012968,1763183441360,-227.770705,0.00038818,120]
[394012969,1763183441370,-496.403243,0.00038818,120]
[394012970,1763183441379,-227.770705,0.00038818,120]
[394012971,1763183441389,-496.403243,0.00038818,120]
[394012972,1763183441399,-470.63811,0.00038818,120]
[394012973,1763183441409,-496.403243,0.00038818,120]
[394012974,1763183441418,-496.403243,0.00038818,120]
[394012975,1763183441428,-470.63811,0.00038818,120]
[394012976,1763183441437,-470.63811,0.00038818,120]
[394012977,1763183441447,-470.63811,0.00038818,120]
[394012978,1763183441456,-2409.732863,0.00038818,120]
[394012979,1763183441465,-2409.732863,0.00038818,120]
[394012980,1763183441475,-2409.732863,0.00038818,120]
[394012981,1763183441484,-2409.732863,0.00038818,120]
[394012982,1763183441494,-15791.36977887,0.00038826,2]
[394012983,1763183441503,-151.0,0.00038826,120]
[394012984,1763183441512,-166.973417,0.00038826,120]
[394012985,1763183441522,-1127.814735,0.00038826,120]
[394012986,1763183441531,-151.0,0.00038826,120]
[394012987,1763183441540,-1127.814735,0.00038826,120]
[394012988,1763183441550,-1127.814735,0.00038826,120]
[394012989,1763183441560,-1127.814735,0.00038826,120]
[394012990,1763183441569,-151.0,0.00038826,30]
[394012991,1763183441579,-152.154092,0.00038828,120]
[394012992,1763183441589,-151.0,0.00038828,120]
[394012993,1763183441598,-151.0,0.00038828,120]
[394012994,1763183441608,-151.0,0.00038828,120]
[394012995,1763183441617,-154.360164,0.00038828,120]
[394012996,1763183441627,-494.460272,0.00038828,2]
[394012997,1763183441636,-494.460272,0.00038828,2]
[394012998,1763183441646,-494.460272,0.00038828,2]
[394012999,1763183441655,-494.460272,0.00038828,2]
[394013000,1763183441665,-165.521944,0.00038828,120]
[394013001,1763183441674,-151.0,0.00038828,120]
[394013002,1763183441683,-151.0,0.00038828,120]
[394013003,1763183441694,-151.0,0.00038828,120]
[394013004,1763183441703,-397.406166,0.00038828,120]
[394013005,1763183441713,-397.406166,0.00038828,120]
[394013006,1763183441723,-397.406166,0.00038828,120]
[394013007,1763183441732,-397.406166,0.00038828,120]
[394013008,1763183441742,-151.0,0.00038828,120]
[394013009,1763183441751,-151.0,0.00038828,120]
[394013010,1763183441760,-151.0,0.00038828,120]
[394013011,1763183441770,-151.0,0.00038828,120]
[394013012,1763183441779,-151.0,0.00038828,120]
[394013013,1763183441788,-151.0,0.00038828,120]
[394013014,1763183441798,-305.024795,0.00038828,120]
[394013015,1763183441808,-305.024795,0.00038828,120]
[394013016,1763183441817,-305.024795,0.00038828,120]
[394013017,1763183441827,-305.024795,0.00038828,120]
[394013018,1763183441837,-151.0,0.00038828,120]
[394013019,1763183441846,-167.092001,0.00038828,120]
[394013020,1763183441856,-167.092001,0.00038828,120]
[394013021,1763183441865,-167.092001,0.00038828,120]
[394013022,1763183441875,-167.092001,0.00038828,120]
[394013023,1763183441884,-284.396293,0.00038828,120]
[394013024,1763183441894,-151.0,0.00038828,120]
[394013025,1763183441903,-151.0,0.00038828,120]
[394013026,1763183441913,-151.0,0.00038828,120]
[394013027,1763183441923,-151.0,0.00038828,120]
[394013028,1763183441932,-164.339368,0.00038828,7]
[394013029,1763183441943,-164.339368,0.00038828,7]
[394013030,1763183441952,-164.339368,0.00038828,7]
[394013031,1763183441961,-164.339368,0.00038828,7]
[394013032,1763183441971,-151.0,0.00038828,120]
[394013033,1763183441981,-151.0,0.00038828,120]
[394013034,1763183441990,-151.0,0.00038828,120]
[394013035,1763183442001,-151.0,0.00038828,120]
[394013036,1763183442011,-151.0,0.00038828,120]
[394013037,1763183442026,-309.896953,0.00038828,120]
[394013038,1763183442042,-309.896953,0.00038828,120]
[394013039,1763183442053,-309.896953,0.00038828,120]
[394013040,1763183442064,-309.896953,0.00038828,120]
[394013041,1763183442073,-227.770705,0.00038828,120]
[394013042,1763183442086,-227.770705,0.00038828,120]
[394013043,1763183442096,-227.770705,0.00038828,120]
[394013044,1763183442105,-496.403243,0.00038828,120]
[394013045,1763183442115,-227.770705,0.00038828,120]
[394013046,1763183442125,-496.403243,0.00038828,120]
[394013047,1763183442135,-470.63811,0.00038828,120]
[394013048,1763183442144,-496.403243,0.00038828,120]
[394013049,1763183442156,-496.403243,0.00038828,120]
[394013050,1763183442166,-470.63811,0.00038828,120]
[394013051,1763183442175,-470.63811,0.00038828,120]
[394013052,1763183442185,-470.63811,0.00038828,120]
[394013053,1763183442194,-2409.732863,0.00038828,120]
[394013054,1763183442204,-2409.732863,0.00038828,120]
[394013055,1763183442214,-2409.732863,0.00038828,120]
[394013056,1763183442223,-2409.732863,0.00038828,120]
[394013057,1763183442234,-282.39,0.0003887,10]
[394013058,1763183442243,-500.0,0.00038873,5]
[394013059,1763183442253,-493.97907115,0.00038873,2]
[394013060,1763183442262,-500.0,0.00038873,5]
[394013061,1763183442272,-512.30900408,0.00038873,5]
[394013062,1763183442282,-500.0,0.00038873,5]
[394013063,1763183442291,-500.0,0.00038873,5]
[394013064,1763183442301,-2000.0,0.0003888,10]
[394013065,1763183442310,-150.08,0.00038885,120]
[394013066,1763183442319,-169.917308,0.0003889,20]
[394013067,1763183442328,-1000.0,0.00038896,2]
[394013068,1763183442338,-1000.0,0.00038896,2]
[394013069,1763183442346,-1000.0,0.00038896,2]
[394013070,1763183442356,-1000.0,0.00038896,2]
[394013071,1763183442365,-1000.0,0.00038896,2]
[394013072,1763183442374,-1000.0,0.00038896,2]
[394013073,1763183442383,-1000.0,0.00038896,2]
[394013074,1763183442393,-1000.0,0.00038896,2]
[394013075,1763183442403,-1000.0,0.00038896,2]
[394013076,1763183442412,-1000.0,0.00038896,2]
[394013077,1763183442422,-1000.0,0.00038896,2]
[394013078,1763183442431,-191.02999714,0.00038896,2]
[394013079,1763183442440,-151.0,0.00038918,120]
[394013080,1763183442449,-164.339368,0.00038918,7]
[394013081,1763183442459,-164.339368,0.00038918,7]
[394013082,1763183442467,-164.339368,0.00038918,7]
[394013083,1763183442477,-164.339375,0.00038918,7]
[394013084,1763183442486,-151.0,0.00038918,120]
[394013085,1763183442495,-151.0,0.00038918,120]
[394013086,1763183442505,-151.0,0.00038918,120]
[394013087,1763183442515,-151.0,0.00038918,120]
[394013088,1763183442525,-309.896953,0.00038918,120]
[394013089,1763183442534,-309.896953,0.00038918,120]
[394013090,1763183442544,-309.896953,0.00038918,120]
[394013091,1763183442553,-309.896962,0.00038918,120]
[394013092,1763183442563,-227.770705,0.00038918,120]
[394013093,1763183442572,-227.770705,0.00038918,120]
[394013094,1763183442582,-227.770705,0.00038918,120]
[394013095,1763183442591,-496.403243,0.00038918,120]
[394013096,1763183442602,-227.770711,0.00038918,120]
[394013097,1763183442612,-496.403243,0.00038918,120]
[394013098,1763183442622,-470.63811,0.00038918,120]
[394013099,1763183442631,-496.403243,0.00038918,120]
[394013100,1763183442641,-496.403235,0.00038918,120]
[394013101,1763183442650,-470.63811,0.00038918,120]
[394013102,1763183442660,-470.63811,0.00038918,120]
[394013103,1763183442669,-470.638108,0.00038918,120]
[394013104,1763183442679,-2409.732863,0.00038918,120]
[394013105,1763183442689,-2409.732863,0.00038918,120]
[394013106,1763183442698,-2409.732863,0.00038918,120]
[394013107,1763183442708,-2409.732857,0.00038918,120]
[394013108,1763183442717,-536.65,0.00038927,20]
[394013109,1763183442727,-74810.6,0.00038928,10]
[394013110,1763183442736,-152.965475,0.00038928,120]
[394013111,1763183442746,-151.701042,0.00038928,120]
[394013112,1763183442755,-151.0,0.00038928,120]
[394013113,1763183442765,-151.870863,0.00038928,120]
[394013114,1763183442777,-151.0,0.00038928,120]
[394013115,1763183442786,-151.0,0.00038928,120]
[394013116,1763183442796,-152.791829,0.00038928,30]
[394013117,1763183442805,-151.0,0.00038928,120]
[394013118,1763183442814,-151.0,0.00038928,120]
[394013119,1763183442824,-151.0,0.00038928,120]
[394013120,1763183442833,-151.0,0.00038928,120]
[394013121,1763183442843,-151.0,0.00038928,120]